bitfinex-derivatives/quotes_ETHF0:USTF0_20241129
["timestamp","ask_amount","ask_price","bid_price","bid_amount"]
[1732889726624,2.09489257,3606.3,3605.7,3.2078]
[1732889726925,0.27719,3606.3,3606.2,0.2772]
[1732889727432,0.4434,3606.4,3605.7,3.9009]
[1732889727622,0.2772,3606.3,3606.2,0.2772]
[1732889727925,0.2772,3606.3,3605.7,3.9009]
[1732889727926,0.4434,3606.4,3605.7,3.2078]
[1732889728133,0.27719,3606.3,3605.7,7.5078]
[1732889728319,0.29719,3606.3,3606.1,0.2772]
[1732889728517,0.2772,3606.2,3606.1,0.2772]
[1732889728720,0.4434,3606.4,3605.7,3.2078]
[1732889729016,0.2772,3606.3,3606.1,0.2772]
[1732889729219,0.4434,3606.4,3605.7,7.0578]
[1732889729220,0.72059,3606.4,3606.2,0.2772]
[1732889729416,0.72059,3606.4,3605.7,3.2078]
[1732889729417,0.4434,3606.4,3606.1,0.2772]
[1732889729628,0.2772,3606.2,3606.1,0.2772]
[1732889730129,0.2772,3606.2,3606.0,0.27721]
[1732889730627,0.27721,3606.1,3606.0,0.27721]
[1732889731217,0.27722,3606.0,3605.9,0.27722]
[1732889731424,0.27722,3606.0,3605.3,5.30269257]
[1732889731619,0.27722,3606.0,3605.9,0.27722]
[1732889733329,0.27722,3606.0,3605.4,0.69315]
[1732889733526,0.27722,3606.0,3605.9,0.27722]
[1732889734428,0.27724,3605.7,3605.6,0.27724]
[1732889734623,0.27724,3605.7,3605.6,0.429]
[1732889735030,0.4315,3605.9,3605.4,1.12345]
[1732889735031,0.27725,3605.5,3605.4,1.12345]
[1732889736028,3.2078,3605.7,3605.4,0.8462]
[1732889736225,0.27725,3605.5,3605.4,1.12345]
[1732889736431,0.27725,3605.5,3605.4,0.4282]
[1732889736930,3.2078,3605.7,3605.2,0.429]
[1732889737133,0.71846,3605.4,3605.3,0.27727]
[1732889737326,0.71846,3605.4,3605.3,1.82727]
[1732889737829,0.4412,3605.4,3605.3,1.82727]
[1732889738022,0.71846,3605.4,3605.3,1.82727]
[1732889738422,0.71846,3605.4,3605.3,1.55]
[1732889738624,0.71846,3605.4,3605.0,41.6436]
[1732889738625,0.71846,3605.4,3605.0,41.2282]
[1732889738824,0.27731,3604.8,3604.7,0.3168]
[1732889739021,0.448,3605.0,3604.7,1.32949]
[1732889739227,0.27731,3604.8,3604.7,0.03949]
[1732889743629,9.25934779,3604.8,3603.4,3.2078]
[1732889743829,3.2078,3604.0,3603.4,1.18]
[1732889744027,3.2078,3604.0,3603.9,0.27738]
[1732889744735,3.48517,3604.0,3603.9,0.27738]
[1732889745531,0.27738,3603.9,3603.8,0.27738]
[1732889745823,0.27738,3603.9,3603.3,0.8734]
[1732889745824,0.27738,3603.9,3603.7,0.27739]
[1732889746023,0.27738,3603.9,3603.3,0.8734]
[1732889746327,0.27738,3603.9,3603.4,0.27741]
[1732889746635,0.27738,3603.9,3603.8,0.27738]
[1732889746832,0.4222,3603.9,3603.8,0.27738]
[1732889747033,0.69958,3603.9,3603.3,0.8734]
[1732889747332,0.69958,3603.9,3603.7,0.27739]
[1732889747528,0.4222,3603.9,3603.3,0.8734]
[1732889747723,0.4222,3603.9,3603.8,0.27738]
[1732889747922,0.4222,3603.9,3603.3,0.8734]
[1732889748128,0.27739,3603.8,3603.6,0.27739]
[1732889748322,0.4222,3603.9,3603.3,0.8734]
[1732889748530,0.4222,3603.9,3603.5,0.27741]
[1732889748732,0.27739,3603.7,3603.3,0.8734]
[1732889749036,0.27739,3603.7,3603.6,0.2774]
[1732889749233,0.2774,3603.7,3603.5,0.2774]
[1732889749633,3.2078,3603.6,3603.0,40.8]
[1732889749827,3.2078,3603.6,3603.0,42.12]
[1732889750027,3.2078,3603.6,3603.5,0.27741]
[1732889750235,3.4852,3603.6,3603.5,0.27741]
[1732889750642,3.2078,3603.6,3603.5,0.27741]
[1732889752034,3.2078,3603.6,3603.0,41.49362]
[1732889752237,3.2078,3603.6,3603.4,0.27741]
[1732889752537,3.2078,3603.6,3603.5,0.27741]
[1732889753439,3.4852,3603.6,3603.1,0.6936]
[1732889753632,0.27741,3603.5,3603.4,0.27741]
[1732889753838,3.4852,3603.6,3603.4,2.54741]
[1732889754040,3.4852,3603.6,3603.5,0.27741]
[1732889754232,3.2078,3603.6,3603.5,0.27741]
[1732889754430,3.2078,3603.6,3603.0,40.8]
[1732889754635,3.4852,3603.6,3603.1,0.27744]
[1732889754938,3.4852,3603.6,3603.4,0.27741]
[1732889754939,0.27741,3603.5,3603.4,0.27741]
[1732889755335,3.2078,3603.6,3603.0,40.8]
[1732889755536,0.8443,3603.4,3603.3,0.27742]
[1732889755731,0.8443,3603.4,3603.3,2.95742]
[1732889756034,3.2078,3603.6,3603.5,0.27741]
[1732889756235,0.4128,3603.9,3603.8,0.27738]
[1732889756435,0.4128,3603.9,3603.8,3.38738]
[1732889757036,3.2078,3604.6,3603.8,3.11]
[1732889757237,0.4311,3604.8,3604.7,0.27731]
[1732889758538,0.4311,3604.8,3604.3,0.4423]
[1732889758737,0.70841,3604.8,3604.7,0.27731]
[1732889758938,0.4311,3604.8,3604.7,0.27731]
[1732889759137,0.4311,3604.8,3604.3,0.4423]
[1732889759335,0.4311,3604.8,3604.3,2.58]
[1732889759639,0.27733,3604.5,3604.4,0.27733]
[1732889759935,0.27733,3604.5,3604.4,2.32]
[1732889760334,0.4292,3604.7,3604.4,2.32]
[1732889760840,0.70652,3604.7,3604.6,0.27732]
[1732889761035,0.70651,3604.7,3604.6,0.27732]
[1732889761236,0.27732,3604.6,3604.5,0.27732]
[1732889761436,0.4292,3604.7,3604.5,2.76]
[1732889761743,0.4292,3604.7,3604.6,0.27732]
[1732889762041,0.4311,3604.8,3604.7,0.27731]
[1732889762248,0.4375,3605.1,3605.0,0.27729]
[1732889763533,0.4424,3605.3,3604.6,0.861]
[1732889763742,3.90769,3605.0,3604.9,0.2773]
[1732889764040,3.2078,3605.0,3604.9,0.2773]
[1732889764438,3.48509,3605.0,3604.9,0.2773]
[1732889764746,0.2773,3604.9,3604.7,0.27731]
[1732889765242,3.2078,3605.0,3604.2,1.11887]
[1732889765243,3.4851,3605.0,3604.8,0.2773]
[1732889765448,3.4851,3605.0,3604.6,0.27732]
[1732889765449,0.27732,3604.7,3604.6,0.27732]
[1732889765640,0.27732,3604.7,3604.2,0.4255]
[1732889765641,5.30269257,3605.0,3604.2,0.4255]
[1732889765847,0.27733,3604.5,3604.4,0.27734]
[1732889766145,0.27733,3604.5,3604.4,0.27733]
[1732889766454,0.4271,3604.5,3604.4,0.27733]
[1732889767241,0.4271,3604.5,3604.4,0.56733]
[1732889767448,0.70443,3604.5,3604.4,0.56733]
[1732889767647,0.4271,3604.5,3604.4,0.56733]
[1732889768053,4.0669,3604.6,3604.4,0.29]
[1732889768245,3.6562,3604.6,3604.5,0.27733]
[1732889768547,0.688,3604.9,3604.7,0.27731]
[1732889768743,0.688,3604.9,3604.8,0.27731]
[1732889768946,0.4107,3604.9,3604.1,1.12239]
[1732889769141,0.4107,3604.9,3604.5,0.27732]
[1732889769142,0.27732,3604.6,3604.5,0.27732]
[1732889769341,0.69333,3604.5,3603.6,0.2774]
[1732889769553,0.69333,3604.5,3603.3,0.69355]
[1732889769554,3.2078,3603.8,3603.3,0.69355]
[1732889769750,3.2078,3603.8,3603.7,0.27739]
[1732889769942,3.2078,3604.2,3604.0,0.27736]
[1732889770149,3.2078,3604.2,3603.3,44.0078]
[1732889770450,3.2078,3604.2,3603.7,0.27739]
[1732889770451,0.4182,3604.1,3603.7,0.27739]
[1732889770649,0.27739,3603.8,3603.6,0.27739]
[1732889770843,0.2774,3603.7,3603.3,40.8]
[1732889771046,3.48519,3603.8,3603.6,0.2774]
[1732889771345,0.27739,3603.7,3603.6,0.27739]
[1732889771751,0.69199,3603.7,3603.6,0.27739]
[1732889772442,0.4146,3603.7,3603.6,0.27739]
[1732889772648,3.2078,3603.8,3603.2,42.1136]
[1732889772850,3.2078,3603.8,3603.7,0.27739]
[1732889774752,3.48518,3603.8,3603.7,0.27739]
[1732889774954,3.2078,3603.8,3603.7,0.27739]
[1732889775549,3.2078,3603.8,3603.2,43.0836]
[1732889775752,0.2774,3603.6,3603.5,0.27741]
[1732889775948,0.4217,3603.7,3603.2,4.6225]
[1732889775949,0.27741,3603.5,3603.4,0.27741]
[1732889776255,0.27741,3603.6,3603.4,0.27741]
[1732889776450,0.8421,3603.7,3603.4,0.27741]
[1732889776451,1.2799,3603.7,3603.4,0.27741]
[1732889776661,0.27741,3603.5,3603.4,0.27741]
[1732889776856,1.2799,3603.7,3603.2,0.8825]
[1732889777056,1.2799,3603.7,3603.2,4.6025]
[1732889777248,1.2799,3603.7,3603.2,4.162]
[1732889777558,0.27742,3603.3,3603.2,3.72]
[1732889778054,0.27742,3603.3,3602.9,0.418]
[1732889778055,0.27744,3603.0,3602.9,41.218]
[1732889778253,5.30269257,3603.4,3602.4,3.2078]
[1732889778560,0.27746,3602.8,3602.6,0.27747]
[1732889779151,1.2995,3602.9,3602.4,3.2078]
[1732889779458,3.48522,3603.4,3603.2,0.27743]
[1732889779754,3.48522,3603.4,3603.1,0.27743]
[1732889779755,1.13512,3603.3,3603.1,0.27743]
[1732889779957,0.8577,3603.3,3602.9,0.27745]
[1732889780160,0.27744,3603.0,3602.4,44.0078]
[1732889780455,3.2078,3603.0,3602.4,40.8]
[1732889780656,0.27747,3602.7,3602.5,0.27748]
[1732889780853,0.4418,3602.9,3602.4,40.8]
[1732889781052,0.4418,3602.9,3601.8,3.2078]
[1732889781053,4.18978514,3602.5,3601.4,0.96073682]
[1732889781250,10.74204036,3601.5,3599.1,8.65401365]
[1732889781452,10.74204036,3601.5,3599.6,0.27771]
[1732889781453,2.09489257,3599.7,3599.6,0.27771]
[1732889781650,2.09489257,3599.7,3599.6,0.17]
[1732889781860,2.09489257,3599.7,3599.6,0.19]
[1732889782053,3.2078,3600.4,3599.6,5.19]
[1732889782355,3.2078,3600.2,3599.6,0.19]
[1732889782862,3.2078,3600.2,3600.0,0.27767]
[1732889783155,3.2078,3600.2,3598.9,3.2078]
[1732889783356,3.2078,3599.8,3599.6,0.27771]
[1732889783657,3.2078,3599.8,3599.5,0.27771]
[1732889784060,3.2078,3599.8,3599.7,0.2777]
[1732889784259,3.2078,3599.8,3599.1,0.969]
[1732889784455,3.2078,3599.8,3599.7,0.2777]
[1732889785656,3.2078,3600.2,3599.8,0.27769]
[1732889785851,3.2078,3600.2,3599.9,0.27768]
[1732889786257,3.2078,3600.2,3599.4,0.4256]
[1732889786258,3.2078,3600.2,3600.0,40.8]
[1732889788355,3.2078,3600.2,3600.1,0.27767]
[1732889790351,3.2078,3600.2,3600.0,40.8]
[1732889790563,2.09489257,3600.1,3599.7,0.27769]
[1732889790856,3.2078,3600.2,3599.7,0.2777]
[1732889791062,3.2078,3600.2,3599.9,0.27768]
[1732889791958,3.2078,3600.2,3599.4,41.2256]
[1732889792259,3.2078,3600.2,3599.9,0.27768]
[1732889792855,3.2078,3600.2,3599.4,41.2256]
[1732889793162,3.2078,3600.2,3599.4,42.7356]
[1732889793359,3.2078,3600.2,3600.1,0.27767]
[1732889794756,3.2078,3600.2,3599.4,41.2256]
[1732889794757,3.48547,3600.2,3599.8,0.27768]
[1732889794952,3.48546,3600.2,3599.9,0.27768]
[1732889795451,3.48546,3600.2,3599.4,41.2256]
[1732889795452,3.2078,3600.2,3599.4,41.2256]
[1732889795653,3.2078,3599.8,3599.7,0.2777]
[1732889795961,0.70692097,3599.8,3599.7,0.2777]
[1732889796456,0.4398,3600.4,3600.2,0.27766]
[1732889796457,3.2078,3600.3,3600.2,0.27766]
[1732889798663,3.2078,3600.3,3599.4,44.4334]
[1732889798854,0.27767,3600.2,3599.9,0.27768]
[1732889799059,3.2078,3600.3,3599.5,0.69429]
[1732889799358,3.2078,3600.3,3599.0,0.27775]
[1732889799359,0.27773,3599.4,3599.0,0.27775]
[1732889799558,5.30269257,3599.6,3599.2,0.27774]
[1732889799754,5.30269257,3599.6,3598.6,0.69447]
[1732889799958,0.27773,3599.4,3598.5,0.86786]
[1732889800160,5.30269257,3599.6,3598.5,5.10233]
[1732889800354,5.30269257,3599.6,3598.5,4.40786]
[1732889800555,2.09489257,3599.2,3598.5,4.40786]
[1732889800960,2.09489257,3599.2,3598.9,0.27775]
[1732889801165,2.09489257,3599.2,3598.5,0.86786]
[1732889801361,5.30269257,3599.2,3598.5,1.38786]
[1732889801554,5.58043257,3599.2,3598.5,1.38786]
[1732889801755,5.30269257,3599.2,3598.9,0.27776]
[1732889801968,5.30269257,3599.2,3598.5,0.86786]
[1732889802164,5.58043257,3599.2,3598.9,0.27776]
[1732889802865,5.58043257,3599.2,3598.6,0.27778]
[1732889803067,5.30269257,3599.2,3598.5,0.86786]
[1732889803261,0.27775,3599.1,3598.9,0.27776]
[1732889803473,0.27775,3599.1,3598.5,1.83786]
[1732889803474,5.30269257,3599.2,3598.5,0.86786]
[1732889803656,5.30269257,3599.2,3599.1,0.27775]
[1732889803968,2.09489257,3599.2,3599.1,0.27775]
[1732889804570,2.09489257,3599.2,3599.1,41.07775]
[1732889805666,2.09489257,3599.6,3599.5,0.27771]
[1732889806365,3.2078,3600.2,3599.3,0.4405]
[1732889806571,3.2078,3600.2,3599.5,0.27771]
[1732889806771,2.09489257,3599.8,3599.4,0.4243]
[1732889806967,5.30269257,3599.8,3599.4,0.4243]
[1732889807173,5.58039257,3599.8,3599.4,0.4243]
[1732889807472,5.30269257,3599.8,3599.4,0.4243]
[1732889807861,5.30269257,3599.8,3599.5,0.27771]
[1732889808273,5.30269257,3599.8,3599.4,0.70202]
[1732889808473,5.30269257,3599.8,3599.4,0.4243]
[1732889808772,5.30269257,3599.8,3599.5,0.27771]
[1732889808966,5.30269257,3599.8,3599.4,0.4243]
[1732889809372,0.27771,3599.7,3599.4,0.4243]
[1732889809873,0.2777,3599.7,3599.4,0.4243]
[1732889810364,0.27773,3599.3,3598.8,0.27777]
[1732889810565,5.99693257,3599.8,3598.8,0.27777]
[1732889810566,3.48553,3599.4,3598.8,1.72997]
[1732889810770,3.2078,3599.4,3598.8,1.4522]
[1732889810975,3.48552,3599.4,3598.8,42.2522]
[1732889811475,3.2078,3599.4,3598.8,42.2522]
[1732889811676,3.2078,3599.4,3599.0,0.27775]
[1732889811970,3.2078,3599.4,3598.8,41.6422]
[1732889812174,3.2078,3599.4,3598.8,43.9122]
[1732889812470,3.2078,3599.4,3599.0,0.27775]
[1732889812672,3.48552,3599.4,3599.0,0.27775]
[1732889812876,3.2078,3599.4,3599.0,0.27775]
[1732889813175,3.2078,3599.4,3598.8,41.6422]
[1732889813363,5.30269257,3599.4,3598.8,42.36]
[1732889813564,5.30269257,3599.4,3598.8,1.56]
[1732889813770,0.27776,3598.9,3598.8,1.56]
[1732889813969,0.23649786,3598.9,3598.8,1.56]
[1732889818367,0.4183,3599.5,3598.9,0.27776]
[1732889818368,0.27775,3599.1,3598.9,0.27776]
[1732889818571,0.27773,3599.3,3599.1,0.27775]
[1732889818766,3.2078,3599.5,3599.1,0.27774]
[1732889818975,3.2078,3599.5,3598.7,3.2078]
[1732889818976,3.2078,3599.5,3599.2,0.4189]
[1732889819168,0.27773,3599.3,3599.2,0.4189]
[1732889819671,3.2078,3599.5,3599.4,0.27772]
[1732889820773,2.09489257,3599.8,3599.3,3.6405]
[1732889821073,3.48547,3600.1,3599.3,4.33482]
[1732889821265,0.27767,3600.2,3599.5,2.09489257]
[1732889821467,0.8419,3600.4,3599.8,5.30269257]
[1732889821670,0.27767,3600.1,3599.9,0.27768]
[1732889821870,0.8419,3600.4,3599.5,0.969]
[1732889822077,0.27767,3600.1,3599.9,0.27768]
[1732889822278,0.8419,3600.4,3599.5,1.66328]
[1732889822475,0.4306,3600.4,3599.8,2.09489257]
[1732889822775,0.4306,3600.4,3599.7,3.90206]
[1732889822776,0.27767,3600.1,3599.9,0.27768]
[1732889822973,0.27768,3600.0,3599.8,0.27769]
[1732889823273,0.27766,3600.2,3599.9,0.27768]
[1732889823475,0.27766,3600.3,3600.0,0.27767]
[1732889823669,0.27765,3600.4,3600.1,0.27767]
[1732889824071,0.27766,3600.3,3600.1,0.27767]
[1732889824281,3.2078,3600.5,3599.8,3.2078]
[1732889824282,3.2078,3600.5,3600.0,0.27767]
[1732889824466,3.2078,3600.5,3599.8,3.2078]
[1732889824668,3.2078,3600.5,3600.0,0.27767]
[1732889824669,0.27766,3600.2,3600.0,0.27767]
[1732889824870,0.27766,3600.3,3600.0,0.27767]
[1732889825477,0.27766,3600.3,3599.8,3.2078]
[1732889825679,0.27766,3600.3,3600.1,0.27767]
[1732889826378,0.27766,3600.2,3600.0,0.27767]
[1732889826681,0.27766,3600.3,3600.0,0.27767]
[1732889826980,0.4418,3600.4,3599.7,49.45401365]
[1732889827181,0.27766,3600.3,3600.1,0.27767]
[1732889827478,0.4418,3600.4,3600.0,0.27767]
[1732889827673,0.27766,3600.2,3600.0,0.27767]
[1732889827871,0.4418,3600.4,3599.6,8.65401365]
[1732889828182,0.4418,3600.4,3599.9,0.27768]
[1732889828183,0.27766,3600.2,3599.9,0.27768]
[1732889828473,0.27766,3600.2,3599.6,8.65401365]
[1732889828474,0.4418,3600.4,3599.6,40.8]
[1732889828679,0.27767,3600.1,3599.8,0.27769]
[1732889828978,0.27767,3600.1,3599.8,0.27768]
[1732889829172,0.27767,3600.1,3599.9,0.27768]
[1732889829372,0.27766,3600.2,3599.9,0.27768]
[1732889829678,0.27767,3600.2,3599.9,0.27768]
[1732889829885,0.27766,3600.3,3599.6,40.8]
[1732889830181,3.2078,3600.5,3599.8,5.30269257]
[1732889830378,0.4329,3600.8,3599.9,1.11671]
[1732889830575,0.4329,3600.8,3600.2,3.2078]
[1732889830883,0.27765,3600.4,3600.3,0.4078]
[1732889831074,0.27766,3600.3,3600.0,0.27767]
[1732889831473,1.12696,3600.8,3600.0,0.27767]
[1732889831676,5.30269257,3600.5,3599.6,44.0078]
[1732889831982,5.30269257,3600.5,3599.1,0.4367]
[1732889831983,0.27774,3599.2,3599.1,0.4367]
[1732889832376,0.27773,3599.3,3599.1,0.4367]
[1732889832578,1.2839,3599.6,3599.1,0.71444]
[1732889832882,0.27774,3599.2,3599.1,0.4367]
[1732889833077,0.27773,3599.3,3599.1,0.4367]
[1732889833579,0.27774,3599.2,3599.1,0.4367]
[1732889833785,0.27773,3599.3,3599.1,0.4367]
[1732889833983,1.2839,3599.6,3599.1,0.4367]
[1732889834182,0.27771,3599.5,3599.1,0.71444]
[1732889834376,1.2839,3599.6,3599.1,0.71444]
[1732889834377,0.27773,3599.4,3599.1,0.71444]
[1732889834974,0.27773,3599.3,3599.1,0.4367]
[1732889835284,0.27774,3599.2,3599.1,0.4367]
[1732889835478,0.27774,3599.3,3599.1,0.4367]
[1732889835680,0.27775,3599.0,3598.9,40.8]
[1732889835875,0.27775,3599.1,3598.8,0.70026]
[1732889836083,1.97818,3599.6,3598.9,0.27776]
[1732889836285,1.97818,3599.6,3598.8,0.4225]
[1732889836286,1.2839,3599.6,3598.8,0.4225]
[1732889836484,1.2839,3599.6,3598.9,0.27776]
[1732889836688,1.2839,3599.6,3598.8,0.4225]
[1732889836884,0.27778,3598.7,3598.6,40.8]
[1732889837689,0.13970037,3598.7,3598.6,40.8]
[1732889837881,0.69435,3599.2,3598.5,0.4268]
[1732889838079,0.27777,3598.9,3598.6,0.27778]
[1732889838286,0.27775,3599.0,3598.5,0.4268]
[1732889838487,0.27776,3598.9,3598.7,0.27777]
[1732889838792,5.30269257,3599.3,3599.2,0.27774]
[1732889838793,3.2078,3599.3,3599.2,0.27774]
[1732889839091,5.03000322,3600.0,3599.0,0.69439]
[1732889839092,0.27768,3600.0,3599.0,0.69439]
[1732889839383,0.27768,3599.9,3599.3,3.2078]
[1732889839590,0.27768,3599.9,3599.6,0.2777]
[1732889839786,5.30269257,3600.1,3599.4,0.4136]
[1732889839980,0.2777,3599.7,3599.4,0.69132]
[1732889840283,0.4407,3599.8,3599.4,0.69132]
[1732889840473,0.4407,3599.8,3599.4,0.4136]
[1732889840678,0.27772,3599.5,3599.2,0.27773]
[1732889840883,0.4407,3599.8,3599.4,0.27772]
[1732889841086,0.4407,3599.8,3598.9,1.3826]
[1732889841289,0.4407,3599.8,3599.7,0.2777]
[1732889841486,3.25184491,3600.3,3599.3,2.09489257]
[1732889841787,0.4165,3600.4,3599.5,3.2078]
[1732889841788,0.27767,3600.1,3599.5,3.2078]
[1732889842085,0.27767,3600.1,3599.8,0.27769]
[1732889842385,0.4165,3600.4,3599.6,0.4449]
[1732889842582,0.4165,3600.4,3599.9,0.27768]
[1732889842788,0.4165,3600.4,3599.8,0.27769]
[1732889842789,0.27767,3600.1,3599.8,0.27769]
[1732889842984,0.4165,3600.4,3599.8,0.27769]
[1732889843181,0.27768,3600.0,3599.8,0.27769]
[1732889843487,0.27768,3600.0,3599.7,0.4455]
[1732889843690,0.27767,3600.1,3599.8,0.27768]
[1732889844295,0.27769,3599.9,3599.7,0.4455]
[1732889845089,3.2078,3600.1,3599.7,0.4455]
[1732889845286,0.27767,3600.2,3599.9,0.27768]
[1732889845693,0.27767,3600.1,3599.8,0.27769]
[1732889846189,2.09489257,3600.5,3599.7,0.4455]
[1732889846583,0.27767,3600.1,3599.8,0.27768]
[1732889846787,0.27767,3600.1,3599.7,0.4455]
[1732889846788,0.27767,3600.1,3599.9,0.27768]
[1732889846989,0.27767,3600.1,3599.8,0.27769]
[1732889847289,0.27767,3600.1,3599.7,0.4455]
[1732889847290,0.27769,3599.8,3599.7,0.4455]
[1732889847487,3.90197,3600.2,3599.6,0.4449]
[1732889847488,0.2777,3599.7,3599.6,0.4449]
[1732889848587,0.2777,3599.8,3599.6,0.4449]
[1732889848787,0.4388,3599.9,3599.6,0.4449]
[1732889848987,0.2777,3599.7,3599.6,0.4449]
[1732889849387,0.27772,3599.4,3599.3,0.411]
[1732889850086,0.27773,3599.3,3599.2,0.968]
[1732889850494,3.2078,3599.8,3599.0,0.419]
[1732889850791,0.27774,3599.2,3599.0,1.49675]
[1732889851292,0.27774,3599.2,3599.0,0.69675]
[1732889851700,0.27774,3599.3,3599.0,0.69675]
[1732889851994,0.27774,3599.2,3599.0,0.69675]
[1732889852887,0.69427,3599.6,3599.0,0.419]
[1732889853194,0.27774,3599.3,3599.1,40.8]
[1732889853491,6.45964491,3599.8,3599.1,40.8]
[1732889853492,0.27771,3599.7,3599.1,40.8]
[1732889853696,0.2777,3599.7,3599.4,0.27772]
[1732889853897,0.4388,3599.9,3599.4,3.2078]
[1732889854103,6.45964491,3600.2,3599.4,3.2078]
[1732889854104,3.2078,3600.2,3599.4,3.2078]
[1732889854294,0.27767,3600.1,3599.9,0.27768]
[1732889854598,3.2078,3600.2,3599.4,3.9021]
[1732889854893,0.27767,3600.1,3599.9,0.27768]
[1732889855084,0.27768,3600.0,3599.8,0.27769]
[1732889855287,0.27768,3600.0,3599.9,0.8558]
[1732889857497,3.2078,3600.2,3599.5,0.8503]
[1732889857798,0.27769,3599.9,3599.7,0.2777]
[1732889858094,3.2078,3600.2,3599.5,0.8503]
[1732889858297,0.2777,3599.8,3599.6,0.2777]
[1732889858595,3.2078,3600.2,3599.5,0.8503]
[1732889858802,0.72196,3600.3,3600.1,0.27767]
[1732889858989,0.27766,3600.2,3600.0,0.27767]
[1732889859198,0.4443,3600.3,3599.9,0.27768]
[1732889859199,0.27767,3600.1,3599.9,0.27768]
[1732889859498,0.72196,3600.3,3600.1,0.27766]
[1732889859693,0.27766,3600.2,3600.0,0.27767]
[1732889860088,0.72196,3600.3,3600.1,0.4213]
[1732889860288,0.4443,3600.3,3600.1,0.4213]
[1732889860494,0.72196,3600.3,3600.1,0.4213]
[1732889860693,0.72196,3600.3,3600.1,0.69897]
[1732889860897,0.4443,3600.3,3600.2,0.27766]
[1732889861200,3.6122,3600.6,3600.1,0.69896]
[1732889861502,0.27766,3600.2,3600.1,0.4213]
[1732889861800,0.27765,3600.3,3600.1,0.69897]
[1732889862309,0.27765,3600.4,3600.2,0.27766]
[1732889862496,0.27766,3600.3,3600.1,0.69896]
[1732889862692,0.27768,3599.9,3599.8,3.2078]
[1732889862994,0.2777,3599.8,3599.6,0.27771]
[1732889863193,3.90197,3600.2,3599.5,0.71821]
[1732889863390,0.6942,3600.0,3599.5,0.4405]
[1732889863595,4.33579322,3601.3,3599.9,5.30269257]
[1732889863895,0.8549,3601.8,3600.9,2.09489257]
[1732889864095,0.8549,3601.8,3601.3,0.27757]
[1732889864393,1.13244,3601.8,3601.3,0.17]
[1732889864594,1.13244,3601.8,3601.2,0.27758]
[1732889864595,0.27755,3601.7,3601.2,0.27758]
[1732889864799,1.13244,3601.8,3601.2,0.27758]
[1732889865307,0.27755,3601.7,3600.9,2.09489257]
[1732889865595,0.8549,3601.8,3601.2,0.27758]
[1732889865596,1.13244,3601.8,3601.2,0.27758]
[1732889866396,1.13244,3601.8,3600.9,2.09489257]
[1732889866597,1.13244,3601.8,3601.3,0.27757]
[1732889866802,0.8549,3601.8,3601.3,0.27757]
[1732889867105,0.8549,3601.8,3601.3,5.30269257]
[1732889867496,0.8549,3601.8,3601.7,3.48534]
[1732889867900,0.8549,3601.8,3601.7,5.58023257]
[1732889868798,3.2078,3602.7,3602.2,0.2775]
[1732889868998,0.27748,3602.5,3601.8,0.4328]
[1732889869200,3.2078,3602.3,3601.7,40.8]
[1732889869504,0.27751,3602.1,3601.7,41.07754]
[1732889869799,3.2078,3602.3,3601.7,40.8]
[1732889869991,0.4229,3602.0,3601.8,0.27753]
[1732889870592,3.2078,3601.9,3601.1,3.48554305]
[1732889870795,1.12744,3601.8,3601.5,0.27756]
[1732889870999,1.12744,3601.8,3601.7,0.27754]
[1732889871000,0.8499,3601.8,3601.7,0.27754]
[1732889871196,0.4229,3602.0,3601.6,2.09489257]
[1732889871402,0.4229,3602.0,3601.9,0.27753]
[1732889872901,0.4229,3602.0,3601.9,41.07753]
[1732889874900,0.409,3602.2,3601.9,40.8]
[1732889875103,3.2078,3602.4,3602.2,0.2775]
[1732889875499,3.2078,3602.4,3602.3,0.2775]
[1732889875807,3.2078,3602.4,3602.2,0.2775]
[1732889876202,3.2078,3602.4,3601.9,0.27753]
[1732889876408,0.6984,3602.3,3601.6,2.09489257]
[1732889876608,0.72361,3602.2,3601.9,0.27753]
[1732889876811,0.4461,3602.2,3602.0,0.27752]
[1732889877111,0.4461,3602.2,3602.1,0.27751]
[1732889877610,0.4461,3602.2,3601.7,40.8]
[1732889877812,0.72361,3602.2,3601.8,0.27753]
[1732889878012,0.72361,3602.2,3601.7,40.8]
[1732889878209,0.72361,3602.2,3602.0,2.37241257]
[1732889878210,0.4461,3602.2,3602.0,2.37241257]
[1732889878409,0.4461,3602.2,3602.0,2.09489257]
[1732889878612,0.4461,3602.2,3602.0,2.37241257]
[1732889878817,0.72361,3602.2,3602.0,2.09489257]
[1732889879114,0.4461,3602.2,3602.0,2.09489257]
[1732889879511,0.4461,3602.2,3601.2,2.09489257]
[1732889879710,0.27756,3601.5,3601.2,2.53247257]
[1732889879907,3.2078,3601.8,3601.6,0.27755]
[1732889880112,0.4299,3601.8,3601.6,0.27755]
[1732889880307,0.4299,3601.8,3601.7,0.27754]
[1732889880616,0.4082,3602.2,3602.1,0.27751]
[1732889880811,0.4082,3602.2,3602.0,2.37241257]
[1732889881113,0.68571,3602.2,3602.0,2.09489257]
[1732889881307,0.27751,3602.1,3602.0,2.09489257]
[1732889881506,0.4082,3602.2,3602.0,2.09489257]
[1732889881711,0.27751,3602.1,3602.0,2.09489257]
[1732889882515,0.4082,3602.2,3601.6,2.09489257]
[1732889882823,3.2078,3602.0,3601.2,2.09489257]
[1732889883016,0.27752,3602.0,3601.8,0.27753]
[1732889883915,0.27753,3601.9,3601.7,0.27754]
[1732889884120,0.4082,3602.2,3601.6,2.37244257]